[Event "Ebbe Cup 48"]
[Site "Goteborgs Schackcentrum, Vegatan 20, Gothenburg, Sweden"]
[Date "2025.02.16"]
[Round "5.6"]
[White "Hitcher, Oscar"]
[Black "Munuswamy, Shivakumar"]
[Result "1-0"]
[TimeControl "90 minutes + 30 seconds per move from move one"]
[WhiteFideId "1746901"]
[BlackFideId "1788914"]
[WhiteElo "1712"]
[BlackElo "1586"]

1. Nf3 {[%clk 01:30:40]} {[%emt 00:00:19]} d5 {[%clk 01:30:43]} {[%emt
00:00:17]} 2. d4 {[%clk 01:30:46]} {[%emt 00:00:24]} e6 {[%clk 01:30:56]}
{[%emt 00:00:18]} 3. e3 {[%clk 01:30:43]} {[%emt 00:00:33]} Nf6 {[%clk
01:31:10]} {[%emt 00:00:16]} 4. c4 {[%clk 01:30:44]} {[%emt 00:00:29]} Be7
{[%clk 01:31:02]} {[%emt 00:00:37]} 5. cxd5 {[%clk 01:30:35]} {[%emt 00:00:40]}
Nxd5 {[%clk 01:31:12]} {[%emt 00:00:20]} 6. Bd3 {[%clk 01:29:56]} {[%emt
00:01:09]} O-O {[%clk 01:31:06]} {[%emt 00:00:36]} 7. O-O {[%clk 01:30:03]}
{[%emt 00:00:23]} b6 {[%clk 01:30:11]} {[%emt 00:01:25]} 8. Nc3 {[%clk
01:29:39]} {[%emt 00:00:53]} Ba6 {[%clk 01:28:53]} {[%emt 00:01:48]} 9. Nxd5
{[%clk 01:28:30]} {[%emt 00:01:39]} Qxd5 {[%emt 00:01:27]} 10. a3 {[%clk
01:27:26]} {[%emt 00:00:40]} Bxd3 {[%clk 01:29:00]} {[%emt 00:00:20]} 11. Qxd3
{[%clk 01:27:43]} {[%emt 00:00:13]} c5 {[%clk 01:26:09]} {[%emt 00:03:22]} 12.
e4 {[%clk 01:26:21]} {[%emt 00:01:53]} Qd6 {[%clk 01:22:41]} {[%emt 00:03:57]}
13. Be3 {[%clk 01:24:48]} {[%emt 00:02:02]} Rd8 {[%clk 01:19:56]} {[%emt
00:03:15]} 14. g3 {[%clk 01:23:19]} {[%emt 00:02:00]} Nc6 {[%clk 01:18:53]}
{[%emt 00:01:33]} 15. Rfd1 {[%clk 01:21:48]} {[%emt 00:02:00]} e5 {[%clk
01:16:13]} {[%emt 00:03:10]} 16. d5 {[%clk 01:21:22]} {[%emt 00:00:56]} Nd4
{[%clk 01:15:44]} {[%emt 00:00:59]} 17. Bxd4 {[%clk 01:19:33]} {[%emt
00:02:19]} cxd4 {[%clk 01:13:55]} {[%emt 00:02:19]} 18. Rac1 {[%clk 01:18:41]}
{[%emt 00:01:22]} Rac8 {[%clk 01:13:08]} {[%emt 00:01:18]} 19. Rc4 {[%clk
01:17:39]} {[%emt 00:01:32]} Rc7 {[%clk 01:08:57]} {[%emt 00:04:41]} 20. Rdc1
{[%clk 01:17:26]} {[%emt 00:00:42]} Rdc8 {[%clk 01:08:17]} {[%emt 00:01:10]} 21.
Kg2 {[%clk 01:16:32]} {[%emt 00:01:24]} Rxc4 {[%clk 01:06:40]} {[%emt
00:02:07]} 22. Rxc4 {[%clk 01:16:49]} {[%emt 00:00:13]} Rxc4 {[%clk 01:06:47]}
{[%emt 00:00:23]} 23. Qxc4 {[%clk 01:17:13]} {[%emt 00:00:06]} h6 {[%clk
01:06:34]} {[%emt 00:00:43]} 24. Qc8+ {[%clk 01:16:45]} {[%emt 00:00:58]} Bf8
{[%clk 01:04:33]} {[%emt 00:02:31]} 25. Qa6 {[%clk 01:14:48]} {[%emt 00:02:28]}
Qc7 {[%clk 01:03:08]} {[%emt 00:01:53]} 26. b4 {[%clk 01:13:30]} {[%emt
00:01:48]} f6 {[%clk 00:59:17]} {[%emt 00:04:21]} 27. Qd3 {[%clk 01:12:40]}
{[%emt 00:01:20]} Qc3 {[%clk 00:58:09]} {[%emt 00:01:37]} 28. Qxc3 {[%clk
01:07:48]} {[%emt 00:05:22]} dxc3 {[%clk 00:58:24]} {[%emt 00:00:16]} 29. Ne1
{[%clk 01:08:03]} {[%emt 00:00:15]} g6 {[%clk 00:57:19]} {[%emt 00:01:35]} 30.
Kf3 {[%clk 01:08:12]} {[%emt 00:00:21]} h5 {[%clk 00:57:30]} {[%emt 00:00:20]}
31. Ke3 {[%clk 01:06:50]} {[%emt 00:01:51]} a5 {[%clk 00:55:53]} {[%emt
00:02:07]} 32. Nc2 {[%clk 01:06:47]} {[%emt 00:00:33]} Bh6+ {[%clk 00:55:06]}
{[%emt 00:01:17]} 33. Kd3 {[%clk 01:06:27]} {[%emt 00:00:50]} Bd2 {[%clk
00:54:23]} {[%emt 00:01:12]} 34. Kc4 {[%clk 01:06:35]} {[%emt 00:00:23]} axb4
{[%clk 00:48:05]} {[%emt 00:06:49]} 35. axb4 {[%clk 01:06:36]} {[%emt
00:00:28]} Kf7 {[%clk 00:47:59]} {[%emt 00:00:36]} 36. Kb5 {[%clk 01:06:30]}
{[%emt 00:00:37]} Ke7 {[%clk 00:47:58]} {[%emt 00:00:31]} 37. Kxb6 {[%clk
01:06:48]} {[%emt 00:00:11]} Kd6 {[%clk 00:47:51]} {[%emt 00:00:37]} 38. Ka6
{[%clk 01:06:30]} {[%emt 00:00:49]} Bh6 {[%clk 00:47:00]} {[%emt 00:01:22]} 39.
b5 {[%clk 01:06:42]} {[%emt 00:00:17]} Bf8 {[%clk 00:46:36]} {[%emt 00:00:53]}
40. b6 {[%clk 01:06:40]} {[%emt 00:00:33]} Kd7 {[%clk 00:44:42]} {[%emt
00:02:23]} 41. Kb5 {[%clk 01:04:32]} {[%emt 00:02:38]} Bd6 {[%clk 00:42:59]}
{[%emt 00:02:13]} 42. Kc4 {[%clk 01:02:13]} {[%emt 00:02:49]} Kc8 {[%clk
00:42:19]} {[%emt 00:01:11]} 43. Kxc3 {[%clk 01:01:48]} {[%emt 00:00:55]} Kb7
{[%clk 00:42:27]} {[%emt 00:00:22]} 44. Kc4 {[%clk 01:01:20]} {[%emt 00:00:58]}
Kxb6 {[%clk 00:42:33]} {[%emt 00:00:24]} 45. f3 {[%clk 01:01:30]} {[%emt
00:00:19]} Ka5 {[%clk 00:37:23]} {[%emt 00:05:39]} 46. h3 {[%clk 01:01:19]}
{[%emt 00:00:41]} Kb6 {[%clk 00:35:17]} {[%emt 00:02:37]} 47. g4 {[%clk
01:01:38]} {[%emt 00:00:11]} h4 {[%clk 00:33:09]} {[%emt 00:02:38]} 48. Ne3
{[%clk 01:01:55]} {[%emt 00:00:12]} Bc5 {[%clk 00:32:41]} {[%emt 00:00:57]} 49.
Ng2 {[%clk 01:01:37]} {[%emt 00:00:49]} g5 {[%clk 00:32:38]} {[%emt 00:00:33]}
50. Ne1 {[%clk 01:01:50]} {[%emt 00:00:18]} Bd6 {[%clk 00:30:49]} {[%emt
00:02:19]} 51. Nc2 {[%clk 01:01:51]} {[%emt 00:00:28]} Bc5 {[%clk 00:30:02]}
{[%emt 00:01:17]} 52. Nb4 {[%clk 01:02:08]} {[%emt 00:00:13]} Bd6 {[%clk
00:26:20]} {[%emt 00:04:10]} 53. Nc6 {[%clk 01:02:23]} {[%emt 00:00:16]} Kc7
{[%clk 00:24:40]} {[%emt 00:02:11]} 54. Kb5 {[%clk 01:02:28]} {[%emt 00:00:25]}
Kb7 {[%clk 00:22:28]} {[%emt 00:02:42]} 55. Nd8+ {[%clk 01:02:38]} {[%emt
00:00:21]} Kc7 {[%clk 00:22:36]} {[%emt 00:00:20]} 56. Ne6+ {[%clk 01:02:12]}
{[%emt 00:00:56]} Kb7 {[%clk 00:21:58]} {[%emt 00:01:09]} 57. Ng7 {[%clk
01:02:12]} {[%emt 00:00:30]} Bf8 {[%clk 00:16:58]} {[%emt 00:05:30]} 58. Ne8
{[%clk 01:00:17]} {[%emt 00:02:25]} Be7 {[%clk 00:15:08]} {[%emt 00:02:20]} 59.
d6 {[%clk 00:58:23]} {[%emt 00:02:24]} Bd8 {[%clk 00:14:44]} {[%emt 00:00:55]}
60. Kc5 {[%clk 00:58:14]} {[%emt 00:00:39]} 1-0

[ePGN "0.1;DGT LiveChess/2.2.6"]

[Event "Ebbe Cup 48"]
[Site "Goteborgs Schackcentrum, Vegatan 20, Gothenburg, Sweden"]
[Date "2025.02.16"]
[Round "5.7"]
[White "Sreedvan, Shrishti"]
[Black "Hamsten, Martin"]
[Result "0-1"]
[TimeControl "90 minutes + 30 seconds per move from move one"]
[WhiteFideId "1773739"]
[BlackFideId "1780425"]
[WhiteElo "1519"]
[BlackElo "1669"]

1. e4 {[%clk 01:30:59]} c6 {[%clk 01:30:52]} {[%emt 00:00:09]} 2. d4 {[%clk
01:31:22]} {[%emt 00:00:06]} d5 {[%clk 01:31:19]} {[%emt 00:00:03]} 3. exd5
{[%clk 01:31:16]} {[%emt 00:00:35]} cxd5 {[%clk 01:31:41]} {[%emt 00:00:08]} 4.
Nf3 {[%clk 01:31:11]} {[%emt 00:00:36]} Nc6 {[%clk 01:32:04]} {[%emt 00:00:07]}
5. Nc3 {[%clk 01:31:01]} {[%emt 00:00:40]} a6 {[%clk 01:32:25]} {[%emt
00:00:09]} 6. h3 {[%clk 01:30:34]} {[%emt 00:00:57]} Bf5 {[%clk 01:32:14]}
{[%emt 00:00:41]} 7. a3 {[%clk 01:28:08]} {[%emt 00:02:56]} e6 {[%clk
01:31:44]} {[%emt 00:01:00]} 8. Bf4 {[%clk 01:27:00]} {[%emt 00:01:39]} Bd6
{[%clk 01:31:57]} {[%emt 00:00:17]} 9. Bxd6 {[%clk 01:26:12]} {[%emt 00:01:18]}
Qxd6 {[%clk 01:32:23]} {[%emt 00:00:04]} 10. Bd3 {[%clk 01:25:24]} {[%emt
00:01:18]} Nge7 {[%clk 01:32:12]} {[%emt 00:00:41]} 11. O-O {[%clk 01:24:21]}
{[%emt 00:01:33]} O-O {[%clk 01:31:49]} {[%emt 00:00:53]} 12. Re1 {[%clk
01:22:40]} {[%emt 00:02:10]} Bxd3 {[%clk 01:31:32]} {[%emt 00:00:47]} 13. Qxd3
{[%clk 01:22:59]} {[%emt 00:00:11]} b5 {[%clk 01:31:22]} {[%emt 00:00:40]} 14.
Ng5 {[%clk 01:19:25]} {[%emt 00:04:03]} g6 {[%clk 01:31:39]} {[%emt 00:00:14]}
15. Rad1 {[%clk 01:18:16]} {[%emt 00:01:38]} Nf5 {[%clk 01:31:16]} {[%emt
00:00:54]} 16. Nf3 {[%clk 01:17:47]} {[%emt 00:00:58]} b4 {[%clk 01:30:57]}
{[%emt 00:00:49]} 17. axb4 {[%clk 01:17:43]} {[%emt 00:00:34]} Qxb4 {[%clk
01:31:06]} {[%emt 00:00:19]} 18. b3 {[%clk 01:16:14]} {[%emt 00:02:00]} Rfc8
{[%clk 01:29:47]} {[%emt 00:01:50]} 19. Na4 {[%clk 01:14:30]} {[%emt 00:02:14]}
Nd6 {[%clk 01:25:12]} {[%emt 00:05:05]} 20. Nc5 {[%clk 01:12:29]} {[%emt
00:02:31]} Nb5 {[%clk 01:24:53]} {[%emt 00:00:49]} 21. Na4 {[%clk 01:04:13]}
{[%emt 00:08:46]} Rab8 {[%emt 00:03:57]} 22. c4 {[%clk 01:02:22]} {[%emt
00:00:12]} dxc4 {[%clk 01:23:20]} {[%emt 00:00:46]} 23. Qxc4 {[%clk 01:02:27]}
{[%emt 00:00:25]} Qd6 {[%clk 01:20:29]} {[%emt 00:03:21]} 24. Qd3 {[%clk
00:53:00]} {[%emt 00:09:53]} Nb4 {[%clk 01:18:23]} {[%emt 00:02:40]} 25. Qe4
{[%clk 00:50:09]} {[%emt 00:03:20]} Nc3 {[%clk 01:17:45]} {[%emt 00:01:09]} 26.
Nxc3 {[%clk 00:50:10]} {[%emt 00:00:29]} Rxc3 {[%clk 01:17:56]} {[%emt
00:00:19]} 27. Re3 {[%clk 00:48:41]} {[%emt 00:01:59]} Nd5 {[%clk 01:17:59]}
{[%emt 00:00:27]} 28. Qe5 {[%clk 00:46:34]} {[%emt 00:02:37]} Qxe5 {[%clk
01:16:28]} {[%emt 00:02:00]} 29. Rxe5 {[%clk 00:46:51]} {[%emt 00:00:15]} Rbxb3
{[%clk 01:16:42]} {[%emt 00:00:15]} 30. Nd2 {[%clk 00:45:26]} {[%emt 00:01:56]}
Rb8 {[%clk 01:16:23]} {[%emt 00:00:49]} 31. Ra1 {[%clk 00:44:44]} {[%emt
00:01:12]} Rc2 {[%clk 01:15:45]} {[%emt 00:01:08]} 32. Ne4 {[%clk 00:43:23]}
{[%emt 00:01:50]} Ra8 {[%clk 01:15:14]} {[%emt 00:01:02]} 33. Nc5 {[%clk
00:42:35]} {[%emt 00:01:17]} a5 {[%clk 01:15:06]} {[%emt 00:00:39]} 34. Nb3
{[%clk 00:42:18]} {[%emt 00:00:47]} a4 {[%clk 01:15:11]} {[%emt 00:00:24]} 35.
Nc5 {[%clk 00:41:55]} {[%emt 00:00:52]} a3 {[%clk 01:13:58]} {[%emt 00:01:43]}
36. Ree1 {[%clk 00:38:39]} {[%emt 00:03:33]} a2 {[%clk 01:13:17]} {[%emt
00:01:24]} 37. Nb3 {[%clk 00:37:58]} {[%emt 00:01:12]} Rb8 {[%clk 01:12:51]}
{[%emt 00:00:56]} 38. Nc1 {[%clk 00:33:07]} {[%emt 00:05:21]} Rb1 {[%clk
01:12:07]} {[%emt 00:01:14]} 39. Nxa2 {[%clk 00:33:05]} {[%emt 00:00:29]} Rxe1+
{[%clk 01:11:56]} {[%emt 00:00:44]} 40. Rxe1 {[%clk 00:33:22]} {[%emt
00:00:14]} Rxa2 {[%clk 01:12:07]} {[%emt 00:00:19]} 41. Rd1 {[%clk 00:32:54]}
{[%emt 00:00:57]} h5 {[%clk 01:12:04]} {[%emt 00:00:34]} 42. g3 {[%clk
00:32:10]} {[%emt 00:01:13]} g5 {[%clk 01:12:26]} {[%emt 00:00:09]} 43. Rd3
{[%clk 00:30:59]} {[%emt 00:01:40]} f5 {[%clk 01:12:25]} {[%emt 00:00:32]} 44.
Kg2 {[%clk 00:29:20]} {[%emt 00:02:08]} f4 {[%clk 01:12:44]} {[%emt 00:00:12]}
45. Kf3 {[%clk 00:28:15]} {[%emt 00:01:34]} fxg3 {[%clk 01:12:48]} {[%emt
00:00:26]} 46. fxg3 {[%clk 00:28:12]} {[%emt 00:00:33]} Kf7 {[%clk 01:12:42]}
{[%emt 00:00:35]} 47. Ke4 {[%clk 00:25:34]} {[%emt 00:03:06]} Rf2 {[%clk
01:12:28]} {[%emt 00:00:46]} 48. Rf3+ {[%clk 00:24:24]} {[%emt 00:01:39]} Rxf3
{[%clk 01:12:07]} {[%emt 00:00:52]} 49. Kxf3 {[%clk 00:24:52]} {[%emt
00:00:02]} Kg6 {[%clk 01:12:01]} {[%emt 00:00:36]} 50. g4 {[%clk 00:24:13]}
{[%emt 00:01:09]} h4 {[%clk 01:12:07]} {[%emt 00:00:22]} 51. Ke4 {[%clk
00:24:06]} {[%emt 00:00:38]} Kf6 {[%clk 01:12:16]} {[%emt 00:00:21]} 52. Kf3
{[%clk 00:24:13]} {[%emt 00:00:22]} Nc3 {[%clk 01:12:25]} {[%emt 00:00:22]} 53.
Ke3 {[%clk 00:24:11]} {[%emt 00:00:32]} e5 {[%clk 01:12:31]} {[%emt 00:00:24]}
54. dxe5+ {[%clk 00:24:12]} {[%emt 00:00:30]} Kxe5 {[%clk 01:12:55]} {[%emt
00:00:06]} 55. Kf3 {[%clk 00:24:33]} {[%emt 00:00:09]} Nd5 {[%clk 01:13:14]}
{[%emt 00:00:10]} 56. Kg2 {[%clk 00:24:39]} {[%emt 00:00:24]} Ke4 {[%clk
01:13:23]} {[%emt 00:00:22]} 57. Kg1 {[%clk 00:22:14]} {[%emt 00:02:54]} Kf3
{[%clk 01:13:30]} {[%emt 00:00:23]} 58. Kh2 {[%clk 00:22:09]} {[%emt 00:00:35]}
Nf4 {[%clk 01:13:52]} {[%emt 00:00:08]} 59. Kh1 {[%clk 00:22:17]} {[%emt
00:00:22]} Kg3 {[%clk 01:14:07]} {[%emt 00:00:16]} 60. Kg1 {[%clk 00:22:25]}
{[%emt 00:00:22]} Nxh3+ {[%clk 01:14:23]} {[%emt 00:00:13]} 0-1

[ePGN "0.1;DGT LiveChess/2.2.6"]

[Event "Ebbe Cup 48"]
[Site "Goteborgs Schackcentrum, Vegatan 20, Gothenburg, Sweden"]
[Date "2025.02.16"]
[Round "5.8"]
[White "Laudinger, Christian"]
[Black "Dahlin, Emil"]
[Result "1-0"]
[TimeControl "90 minutes + 30 seconds per move from move one"]
[WhiteFideId "1774638"]
[BlackFideId "1771035"]
[WhiteElo "1626"]
[BlackElo "1698"]

1. f4 {[%clk 01:30:58]} {[%emt 00:00:02]} f5 {[%clk 01:30:49]} {[%emt
00:00:11]} 2. Nf3 {[%clk 01:31:18]} {[%emt 00:00:10]} Nf6 {[%clk 01:31:07]}
{[%emt 00:00:13]} 3. g3 {[%clk 01:31:36]} {[%emt 00:00:11]} g6 {[%clk
01:30:28]} {[%emt 00:01:09]} 4. Bg2 {[%clk 01:31:59]} {[%emt 00:00:07]} Bg7
{[%clk 01:30:14]} {[%emt 00:00:44]} 5. d3 {[%clk 01:32:21]} {[%emt 00:00:07]}
O-O {[%clk 01:29:39]} {[%emt 00:01:05]} 6. O-O {[%clk 01:32:46]} {[%emt
00:00:05]} d6 {[%clk 01:26:05]} {[%emt 00:04:04]} 7. Nc3 {[%clk 01:33:09]}
{[%emt 00:00:07]} Nc6 {[%clk 01:22:03]} {[%emt 00:04:32]} 8. e4 {[%clk
01:31:48]} {[%emt 00:01:51]} fxe4 {[%clk 01:21:09]} {[%emt 00:01:25]} 9. dxe4
{[%clk 01:32:02]} {[%emt 00:00:16]} Be6 {[%clk 01:05:48]} {[%emt 00:15:52]} 10.
Re1 {[%clk 01:25:17]} {[%emt 00:07:13]} Bf7 {[%clk 01:01:09]} {[%emt 00:05:09]}
11. Ng5 {[%clk 01:16:16]} {[%emt 00:09:30]} e5 {[%clk 00:56:15]} {[%emt
00:05:24]} 12. Nxf7 {[%clk 01:15:26]} {[%emt 00:01:21]} Rxf7 {[%clk 00:55:50]}
{[%emt 00:00:55]} 13. f5 {[%clk 01:14:09]} {[%emt 00:01:46]} Ne7 {[%clk
00:51:52]} {[%emt 00:04:28]} 14. g4 {[%clk 01:10:33]} {[%emt 00:04:06]} h6
{[%clk 00:40:29]} {[%emt 00:11:52]} 15. h4 {[%clk 01:03:18]} {[%emt 00:07:44]}
Nh7 {[%clk 00:37:13]} {[%emt 00:03:47]} 16. Be3 {[%clk 00:58:54]} {[%emt
00:04:54]} g5 {[%clk 00:34:22]} {[%emt 00:03:22]} 17. Kf2 {[%clk 00:51:34]}
{[%emt 00:07:50]} Bf6 {[%clk 00:27:27]} {[%emt 00:07:25]} 18. Qd2 {[%clk
00:49:41]} {[%emt 00:02:22]} gxh4 {[%clk 00:18:22]} {[%emt 00:09:35]} 19. Bxh6
{[%clk 00:47:56]} {[%emt 00:02:15]} h3 {[%clk 00:16:23]} {[%emt 00:02:30]} 20.
Bxh3 {[%clk 00:45:56]} {[%emt 00:02:28]} Bh4+ {[%clk 00:16:21]} {[%emt
00:00:33]} 21. Kf3 {[%clk 00:45:34]} {[%emt 00:00:52]} Bxe1 {[%clk 00:16:14]}
{[%emt 00:00:36]} 22. Rxe1 {[%clk 00:45:54]} {[%emt 00:00:10]} Ng6 {[%clk
00:11:32]} {[%emt 00:05:13]} 23. g5 {[%clk 00:41:33]} {[%emt 00:04:50]} Qd7
{[%clk 00:07:03]} {[%emt 00:05:00]} 24. Kg3 {[%clk 00:40:30]} {[%emt 00:01:32]}
Nhf8 {[%clk 00:01:18]} {[%emt 00:06:15]} 25. Kh2 {[%clk 00:30:15]} {[%emt
00:10:45]} Nf4 {[%clk 00:01:00]} {[%emt 00:00:48]} 26. Qe3 {[%clk 00:22:05]}
{[%emt 00:08:41]} Rh7 {[%clk 00:00:44]} {[%emt 00:00:45]} 27. Rg1 {[%clk
00:19:07]} {[%emt 00:03:29]} c6 {[%clk 00:00:44]} {[%emt 00:00:30]} 28. Ne2
{[%clk 00:18:56]} {[%emt 00:00:40]} Nxe2 {[%clk 00:00:54]} {[%emt 00:00:21]} 29.
Qxe2 {[%clk 00:19:08]} {[%emt 00:00:17]} Qc7 {[%emt 00:00:53]} 30. Qd2 {[%clk
00:13:09]} {[%emt 00:06:28]} Rd8 {[%clk 00:00:34]} {[%emt 00:00:29]} 31. g6
{[%clk 00:11:27]} {[%emt 00:02:11]} Rhd7 {[%clk 00:00:32]} {[%emt 00:00:33]} 32.
f6 {[%clk 00:08:16]} {[%emt 00:03:41]} Nxg6 {[%clk 00:00:31]} {[%emt 00:00:31]}
33. Rxg6+ {[%clk 00:07:54]} {[%emt 00:00:51]} Kf7 {[%clk 00:00:43]} {[%emt
00:00:18]} 34. Qg5 {[%clk 00:05:30]} {[%emt 00:02:54]} Rh8 {[%clk 00:00:34]}
{[%emt 00:00:40]} 35. Rg7+ {[%clk 00:05:01]} {[%emt 00:00:58]} Ke8 {[%emt
00:00:14]} 36. Rg8+ {[%clk 00:03:47]} {[%emt 00:01:42]} Kf7 {[%clk 00:01:01]}
{[%emt 00:00:21]} 37. Qg6# {[%clk 00:03:52]} {[%emt 00:00:25]} 1-0

[ePGN "0.1;DGT LiveChess/2.2.6"]